[Event "Late-Titled-Tuesday-Blitz-October-24-2023"]
[Site "Chess.com"]
[Date "2023.10.24"]
[Round "2"]
[White "GMKrikor"]
[Black "maximnovik"]
[Result "1-0"]
[WhiteElo "2824"]
[BlackElo "2483"]
[TimeControl "180+1"]
[EndTime "14:22:10 PDT"]
[Termination "GMKrikor won on time"]

1. Nf3 {[%clk 0:03:00.9]} 1... Nf6 {[%clk 0:02:59.7]} 2. c4 {[%clk 0:02:57.5]}
2... g6 {[%clk 0:02:59.6]} 3. Nc3 {[%clk 0:02:57.3]} 3... d5 {[%clk 0:03:00]} 4.
cxd5 {[%clk 0:02:56.5]} 4... Nxd5 {[%clk 0:03:00.1]} 5. h4 {[%clk 0:02:57.3]}
5... Bg7 {[%clk 0:02:58.9]} 6. h5 {[%clk 0:02:56.8]} 6... O-O {[%clk 0:02:58.6]}
7. Qb3 {[%clk 0:02:48.2]} 7... Nb6 {[%clk 0:02:53.9]} 8. d4 {[%clk 0:02:46.8]}
8... Nc6 {[%clk 0:02:53]} 9. hxg6 {[%clk 0:02:43.6]} 9... hxg6 {[%clk
0:02:52.5]} 10. Bh6 {[%clk 0:02:43.5]} 10... Nxd4 {[%clk 0:02:45]} 11. Nxd4
{[%clk 0:02:35.8]} 11... Qxd4 {[%clk 0:02:44.9]} 12. Rd1 {[%clk 0:02:35.3]}
12... Qc4 {[%clk 0:02:44.9]} 13. Qc2 {[%clk 0:02:06.2]} 13... Bxh6 {[%clk
0:02:42.5]} 14. Rxh6 {[%clk 0:02:07.1]} 14... Qf4 {[%clk 0:02:24.3]} 15. Rh1
{[%clk 0:01:39.1]} 15... Bf5 {[%clk 0:02:20.9]} 16. e4 {[%clk 0:01:38.2]} 16...
Bg4 {[%clk 0:02:21]} 17. f3 {[%clk 0:01:29.7]} 17... Qg3+ {[%clk 0:02:15.8]} 18.
Qf2 {[%clk 0:01:29.1]} 18... Qxf2+ {[%clk 0:02:15.8]} 19. Kxf2 {[%clk 0:01:30]}
19... Be6 {[%clk 0:02:16]} 20. Rc1 {[%clk 0:01:23]} 20... c6 {[%clk 0:02:16]}
21. b3 {[%clk 0:01:22.7]} 21... Kg7 {[%clk 0:02:15.8]} 22. Ke3 {[%clk
0:01:23.3]} 22... Rh8 {[%clk 0:02:15.3]} 23. Rxh8 {[%clk 0:01:23.3]} 23... Rxh8
{[%clk 0:02:15]} 24. Bd3 {[%clk 0:01:22.1]} 24... Rd8 {[%clk 0:02:12.7]} 25. Ne2
{[%clk 0:01:21.9]} 25... f6 {[%clk 0:02:07.8]} 26. a4 {[%clk 0:01:18.4]} 26...
a5 {[%clk 0:02:05.7]} 27. Rc3 {[%clk 0:01:07.6]} 27... Bf7 {[%clk 0:02:00.3]}
28. Bc2 {[%clk 0:01:07.2]} 28... e5 {[%clk 0:01:57.1]} 29. Rc5 {[%clk
0:01:07.5]} 29... Ra8 {[%clk 0:01:55.5]} 30. g3 {[%clk 0:01:06.2]} 30... Nd7
{[%clk 0:01:55.4]} 31. Rc3 {[%clk 0:01:07]} 31... Be6 {[%clk 0:01:54.6]} 32. Bd3
{[%clk 0:00:59.6]} 32... Kf7 {[%clk 0:01:53.9]} 33. Bc4 {[%clk 0:00:59.7]} 33...
Bxc4 {[%clk 0:01:50.5]} 34. Rxc4 {[%clk 0:01:00.6]} 34... Ke6 {[%clk 0:01:45.6]}
35. f4 {[%clk 0:00:58.5]} 35... Rh8 {[%clk 0:01:43.6]} 36. Rc1 {[%clk
0:00:52.8]} 36... Rh2 {[%clk 0:01:41.8]} 37. Rc2 {[%clk 0:00:51.9]} 37... Ke7
{[%clk 0:01:40.5]} 38. Rc1 {[%clk 0:00:49.8]} 38... exf4+ {[%clk 0:01:30.6]} 39.
Nxf4 {[%clk 0:00:47.5]} 39... Ne5 {[%clk 0:01:28.7]} 40. Rc5 {[%clk 0:00:45.2]}
40... b6 {[%clk 0:01:25.8]} 41. Rc3 {[%clk 0:00:45.2]} 41... Rb2 {[%clk
0:01:18.5]} 42. Ne2 {[%clk 0:00:45.5]} 42... Kd6 {[%clk 0:01:15.6]} 43. Nd4
{[%clk 0:00:44.8]} 43... Rg2 {[%clk 0:01:00.8]} 44. Ne2 {[%clk 0:00:44.5]} 44...
Nd7 {[%clk 0:00:53.9]} 45. Rd3+ {[%clk 0:00:43.4]} 45... Ke7 {[%clk 0:00:54]}
46. Rc3 {[%clk 0:00:40.7]} 46... Nc5 {[%clk 0:00:53.5]} 47. Kf3 {[%clk 0:00:41]}
47... Rh2 {[%clk 0:00:53]} 48. Nd4 {[%clk 0:00:41.2]} 48... Kd7 {[%clk
0:00:48.1]} 49. Ne2 {[%clk 0:00:41.6]} 49... Kd6 {[%clk 0:00:45.4]} 50. Re3
{[%clk 0:00:37.2]} 50... Ke5 {[%clk 0:00:44.4]} 51. Rc3 {[%clk 0:00:34.9]} 51...
g5 {[%clk 0:00:36.2]} 52. Ke3 {[%clk 0:00:28]} 52... g4 {[%clk 0:00:30]} 53. Nd4
{[%clk 0:00:24.1]} 53... Kd6 {[%clk 0:00:26.2]} 54. Nf5+ {[%clk 0:00:24.1]}
54... Ke5 {[%clk 0:00:24.6]} 55. Nd4 {[%clk 0:00:24.6]} 55... Kd6 {[%clk
0:00:24.2]} 56. Nf5+ {[%clk 0:00:24.9]} 56... Kc7 {[%clk 0:00:23.9]} 57. Kf4
{[%clk 0:00:24.5]} 57... Rb2 {[%clk 0:00:23.2]} 58. Nd4 {[%clk 0:00:24.8]} 58...
Rd2 {[%clk 0:00:21.7]} 59. Nf5 {[%clk 0:00:21.9]} 59... Rf2+ {[%clk 0:00:21]}
60. Kxg4 {[%clk 0:00:18.6]} 60... Nxe4 {[%clk 0:00:20.5]} 61. Re3 {[%clk
0:00:19.3]} 61... Ng5 {[%clk 0:00:18.1]} 62. Re7+ {[%clk 0:00:19.2]} 62... Kb8
{[%clk 0:00:17.4]} 63. Nd6 {[%clk 0:00:19.2]} 63... Rd2 {[%clk 0:00:14.8]} 64.
Nc4 {[%clk 0:00:14.8]} 64... Rd3 {[%clk 0:00:14.3]} 65. Nxb6 {[%clk 0:00:14.1]}
65... Rxb3 {[%clk 0:00:14.5]} 66. Nd7+ {[%clk 0:00:14.7]} 66... Kc7 {[%clk
0:00:14.2]} 67. Rg7 {[%clk 0:00:14.4]} 67... Rb4+ {[%clk 0:00:13.8]} 68. Kf5
{[%clk 0:00:14.6]} 68... Kd6 {[%clk 0:00:14.3]} 69. Nxf6 {[%clk 0:00:14.2]}
69... Nf3 {[%clk 0:00:14]} 70. Rd7+ {[%clk 0:00:13.3]} 70... Kc5 {[%clk
0:00:13.8]} 71. Ne4+ {[%clk 0:00:12.9]} 71... Kb6 {[%clk 0:00:13.5]} 72. Nd6
{[%clk 0:00:09]} 72... Rxa4 {[%clk 0:00:12.9]} 73. g4 {[%clk 0:00:08.2]} 73...
Ra1 {[%clk 0:00:11.6]} 74. Kf4 {[%clk 0:00:04.9]} 74... Nd4 {[%clk 0:00:10]} 75.
Nc4+ {[%clk 0:00:05.2]} 75... Kc5 {[%clk 0:00:10]} 76. Ne5 {[%clk 0:00:06.1]}
76... Ne6+ {[%clk 0:00:09.5]} 77. Kf5 {[%clk 0:00:06.3]} 77... Nd4+ {[%clk
0:00:09.8]} 78. Ke4 {[%clk 0:00:06.7]} 78... Re1+ {[%clk 0:00:09.9]} 79. Kf4
{[%clk 0:00:05.5]} 79... Ne6+ {[%clk 0:00:10.2]} 80. Kf5 {[%clk 0:00:06]} 80...
Nd4+ {[%clk 0:00:10.5]} 81. Kf6 {[%clk 0:00:06.4]} 81... Rf1+ {[%clk 0:00:10.2]}
82. Kg6 {[%clk 0:00:06.1]} 82... a4 {[%clk 0:00:10.6]} 83. g5 {[%clk 0:00:03.1]}
83... a3 {[%clk 0:00:10.1]} 84. Ra7 {[%clk 0:00:03.8]} 84... Kb4 {[%clk
0:00:09]} 85. Nd3+ {[%clk 0:00:04]} 85... Kb3 {[%clk 0:00:09.2]} 86. Nc5+ {[%clk
0:00:04.7]} 86... Kb2 {[%clk 0:00:08.7]} 87. Nd3+ {[%clk 0:00:04.9]} 87... Ka2
{[%clk 0:00:08.5]} 88. Kh7 {[%clk 0:00:02.9]} 88... Nb5 {[%clk 0:00:08.6]} 89.
Ra8 {[%clk 0:00:02.7]} 89... Kb3 {[%clk 0:00:08.8]} 90. g6 {[%clk 0:00:01.9]}
90... a2 {[%clk 0:00:09]} 91. g7 {[%clk 0:00:02.6]} 91... Rh1+ {[%clk
0:00:09.2]} 92. Kg6 {[%clk 0:00:02.6]} 92... Rg1+ {[%clk 0:00:09.1]} 93. Kf6
{[%clk 0:00:01.9]} 93... Kc3 {[%clk 0:00:09.5]} 94. Nc5 {[%clk 0:00:02.1]} 94...
Kc4 {[%clk 0:00:09.5]} 95. Ne4 {[%clk 0:00:02.2]} 95... Nc7 {[%clk 0:00:08.5]}
96. Ra7 {[%clk 0:00:02]} 96... Nd5+ {[%clk 0:00:08.7]} 97. Kf7 {[%clk
0:00:02.7]} 97... Rf1+ {[%clk 0:00:06.1]} 98. Kg6 {[%clk 0:00:02.6]} 98... Rg1+
{[%clk 0:00:05.9]} 99. Ng5 {[%clk 0:00:03.3]} 99... Nf4+ {[%clk 0:00:05.8]} 100.
Kf5 {[%clk 0:00:04]} 100... Rxg5+ {[%clk 0:00:05.6]} 101. Kxg5 {[%clk
0:00:04.2]} 101... Ne6+ {[%clk 0:00:05.9]} 102. Kf6 {[%clk 0:00:04.6]} 102...
Nxg7 {[%clk 0:00:06.3]} 103. Rxa2 {[%clk 0:00:04.6]} 103... Ne8+ {[%clk
0:00:05]} 104. Ke5 {[%clk 0:00:05.2]} 104... Nc7 {[%clk 0:00:05.1]} 105. Rc2+
{[%clk 0:00:05]} 105... Kb5 {[%clk 0:00:05.4]} 106. Kd6 {[%clk 0:00:05.3]}
106... Na6 {[%clk 0:00:04.6]} 107. Rxc6 {[%clk 0:00:04.9]} 107... Nb4 {[%clk
0:00:04.7]} 108. Rc1 {[%clk 0:00:05.4]} 108... Nd3 {[%clk 0:00:04.4]} 109. Rc3
{[%clk 0:00:04.3]} 109... Nb4 {[%clk 0:00:04.5]} 110. Rc5+ {[%clk 0:00:04.5]}
110... Ka4 {[%clk 0:00:04.5]} 111. Rc8 {[%clk 0:00:04.7]} 111... Kb3 {[%clk
0:00:02.3]} 112. Ke5 {[%clk 0:00:04.5]} 112... Nd3+ {[%clk 0:00:01.1]} 113. Kd4
{[%clk 0:00:05]} 113... Nb4 {[%clk 0:00:01.4]} 114. Rb8 {[%clk 0:00:05.5]} 1-0

[Event "Late-Titled-Tuesday-Blitz-October-24-2023"]
[Site "Chess.com"]
[Date "2023.10.24"]
[Round "3"]
[White "IgorBjelobrk"]
[Black "ShahxaibKhan"]
[Result "0-1"]
[WhiteElo "2595"]
[BlackElo "2436"]
[TimeControl "180+1"]
[EndTime "14:24:33 PDT"]
[Termination "ShahxaibKhan won by resignation"]

1. d4 {[%clk 0:03:00.9]} 1... Nf6 {[%clk 0:02:59.3]} 2. c4 {[%clk 0:03:00.6]}
2... e6 {[%clk 0:02:59.3]} 3. g3 {[%clk 0:03:00.6]} 3... d5 {[%clk 0:02:56.2]}
4. Nf3 {[%clk 0:02:59.9]} 4... Bb4+ {[%clk 0:02:52.4]} 5. Bd2 {[%clk 0:02:57.6]}
5... Be7 {[%clk 0:02:52.6]} 6. Bg2 {[%clk 0:02:56.5]} 6... O-O {[%clk
0:02:51.6]} 7. O-O {[%clk 0:02:55]} 7... dxc4 {[%clk 0:02:48.3]} 8. Qa4 {[%clk
0:02:50]} 8... a6 {[%clk 0:02:48.2]} 9. Qxc4 {[%clk 0:02:49.4]} 9... b5 {[%clk
0:02:47.7]} 10. Qc2 {[%clk 0:02:46.8]} 10... Bb7 {[%clk 0:02:47.7]} 11. Ba5
{[%clk 0:02:46.4]} 11... Nc6 {[%clk 0:02:43.5]} 12. Qd2 {[%clk 0:02:13.5]} 12...
Nxa5 {[%clk 0:02:25.9]} 13. Qxa5 {[%clk 0:02:14.4]} 13... c5 {[%clk 0:02:25.8]}
14. dxc5 {[%clk 0:02:13.1]} 14... Qxa5 {[%clk 0:02:24.8]} 0-1

[Event "Late-Titled-Tuesday-Blitz-October-24-2023"]
[Site "Chess.com"]
[Date "2023.10.24"]
[Round "3"]
[White "Apocalyps999"]
[Black "BrandonJacobson"]
[Result "1-0"]
[WhiteElo "2332"]
[BlackElo "3013"]
[TimeControl "180+1"]
[EndTime "14:25:23 PDT"]
[Termination "Apocalyps999 won by resignation"]

1. e4 {[%clk 0:03:00.9]} 1... e5 {[%clk 0:02:55.9]} 2. Nf3 {[%clk 0:03:00.8]}
2... Nc6 {[%clk 0:02:56.6]} 3. Bb5 {[%clk 0:03:00.9]} 3... a6 {[%clk 0:02:56.7]}
4. Ba4 {[%clk 0:03:01.2]} 4... d6 {[%clk 0:02:57.2]} 5. O-O {[%clk 0:02:58.2]}
5... Bd7 {[%clk 0:02:57.7]} 6. d4 {[%clk 0:02:56]} 6... b5 {[%clk 0:02:57.6]} 7.
Bb3 {[%clk 0:02:56]} 7... Nxd4 {[%clk 0:02:58.2]} 8. Nxd4 {[%clk 0:02:55.9]}
8... exd4 {[%clk 0:02:59.1]} 9. c3 {[%clk 0:02:56.1]} 9... Nf6 {[%clk
0:02:57.7]} 10. cxd4 {[%clk 0:02:54.7]} 10... Be7 {[%clk 0:02:58.3]} 11. e5
{[%clk 0:02:52.4]} 11... dxe5 {[%clk 0:02:59.2]} 12. dxe5 {[%clk 0:02:53.1]}
12... Ng4 {[%clk 0:02:59.9]} 13. Bf4 {[%clk 0:02:31.8]} 13... Bf5 {[%clk
0:02:57.8]} 14. Nc3 {[%clk 0:02:30.5]} 14... O-O {[%clk 0:02:29.6]} 15. Qf3
{[%clk 0:02:15.9]} 15... Qd3 {[%clk 0:02:08.4]} 16. Qxd3 {[%clk 0:02:13]} 16...
Bxd3 {[%clk 0:02:08.5]} 17. Rfd1 {[%clk 0:02:11.4]} 17... Bf5 {[%clk 0:02:02.7]}
18. h3 {[%clk 0:02:09.7]} 18... Nh6 {[%clk 0:02:02.5]} 19. Nd5 {[%clk
0:02:09.3]} 19... Bc5 {[%clk 0:01:59]} 20. Rac1 {[%clk 0:02:08]} 20... Bb6
{[%clk 0:01:50.5]} 21. Bxh6 {[%clk 0:02:06.6]} 21... gxh6 {[%clk 0:01:48.8]} 22.
Ne7+ {[%clk 0:02:06.8]} 1-0

[Event "Late-Titled-Tuesday-Blitz-October-24-2023"]
[Site "Chess.com"]
[Date "2023.10.24"]
[Round "3"]
[White "Kleyton_Lima"]
[Black "Alexei_Gubajdullin"]
[Result "0-1"]
[WhiteElo "2499"]
[BlackElo "2711"]
[TimeControl "180+1"]
[EndTime "14:25:35 PDT"]
[Termination "Alexei_Gubajdullin won by resignation"]

1. d4 {[%clk 0:03:00.9]} 1... Nf6 {[%clk 0:02:59.8]} 2. c4 {[%clk 0:03:01.4]}
2... g6 {[%clk 0:03:00.1]} 3. Nc3 {[%clk 0:03:01.2]} 3... Bg7 {[%clk 0:03:00.3]}
4. e4 {[%clk 0:02:59.5]} 4... d6 {[%clk 0:03:00.4]} 5. Nf3 {[%clk 0:03:00]} 5...
O-O {[%clk 0:03:00.8]} 6. Bd3 {[%clk 0:03:00.6]} 6... Na6 {[%clk 0:03:01.2]} 7.
O-O {[%clk 0:02:51]} 7... e5 {[%clk 0:03:01.1]} 8. d5 {[%clk 0:02:51.6]} 8...
Nc5 {[%clk 0:03:00.8]} 9. Bc2 {[%clk 0:02:46.9]} 9... a5 {[%clk 0:03:00.7]} 10.
a3 {[%clk 0:02:46.8]} 10... Nh5 {[%clk 0:02:59.2]} 11. Ne1 {[%clk 0:02:25.7]}
11... Nf4 {[%clk 0:02:56.5]} 12. Be3 {[%clk 0:02:21.4]} 12... f5 {[%clk
0:02:51.6]} 13. f3 {[%clk 0:02:21.6]} 13... Qg5 {[%clk 0:02:49.9]} 14. b4 {[%clk
0:02:18.3]} 14... Nh3+ {[%clk 0:02:47]} 15. Kh1 {[%clk 0:02:18.3]} 15... Qxe3
{[%clk 0:02:46.8]} 16. gxh3 {[%clk 0:02:17.6]} 16... axb4 {[%clk 0:02:44.2]} 17.
axb4 {[%clk 0:02:17.9]} 17... Rxa1 {[%clk 0:02:32.3]} 18. Qxa1 {[%clk
0:02:18.8]} 18... fxe4 {[%clk 0:02:20.6]} 19. bxc5 {[%clk 0:02:16.9]} 19... Bxh3
{[%clk 0:02:20.1]} 20. Ng2 {[%clk 0:01:57.4]} 20... Qd2 {[%clk 0:02:11.5]} 0-1

[Event "Late-Titled-Tuesday-Blitz-October-24-2023"]
[Site "Chess.com"]
[Date "2023.10.24"]
[Round "3"]
[White "ural58"]
[Black "louis198"]
[Result "1-0"]
[WhiteElo "2507"]
[BlackElo "2646"]
[TimeControl "180+1"]
[EndTime "14:25:39 PDT"]
[Termination "ural58 won by resignation"]

1. e4 {[%clk 0:02:56.3]} 1... e6 {[%clk 0:03:00]} 2. d4 {[%clk 0:02:55.5]} 2...
d5 {[%clk 0:03:00.9]} 3. Nc3 {[%clk 0:02:55.2]} 3... Bb4 {[%clk 0:03:00.5]} 4.
Ne2 {[%clk 0:02:54.6]} 4... dxe4 {[%clk 0:02:58.3]} 5. a3 {[%clk 0:02:53.6]}
5... Bxc3+ {[%clk 0:02:58.9]} 6. Nxc3 {[%clk 0:02:53.5]} 6... Nc6 {[%clk
0:02:59.8]} 7. d5 {[%clk 0:02:53.4]} 7... exd5 {[%clk 0:03:00]} 8. Qxd5 {[%clk
0:02:53.9]} 8... Be6 {[%clk 0:02:59.3]} 9. Qxe4 {[%clk 0:02:53.6]} 9... Nf6
{[%clk 0:02:59.2]} 10. Qa4 {[%clk 0:02:53.4]} 10... Qd4 {[%clk 0:02:57.2]} 11.
Bb5 {[%clk 0:02:47]} 11... Qxa4 {[%clk 0:02:53.7]} 12. Nxa4 {[%clk 0:02:40.7]}
12... Bd5 {[%clk 0:02:52.2]} 13. O-O {[%clk 0:02:38]} 13... O-O {[%clk
0:02:47.1]} 14. Bf4 {[%clk 0:02:33.9]} 14... a5 {[%clk 0:02:45.2]} 15. Bxc7
{[%clk 0:02:28.5]} 15... Nd4 {[%clk 0:02:43.2]} 16. Bd3 {[%clk 0:02:25.7]} 16...
Rfc8 {[%clk 0:02:34]} 17. Be5 {[%clk 0:02:25.4]} 17... Nxc2 {[%clk 0:02:34.1]}
18. Rac1 {[%clk 0:02:21.3]} 18... Nd7 {[%clk 0:02:26.8]} 19. Bxc2 {[%clk
0:02:16.9]} 19... Nxe5 {[%clk 0:02:25.1]} 20. Nb6 {[%clk 0:02:17]} 20... Be6
{[%clk 0:02:19.7]} 21. Nxa8 {[%clk 0:02:16.6]} 21... Rxa8 {[%clk 0:02:19.5]} 22.
Be4 {[%clk 0:02:17.1]} 22... Rb8 {[%clk 0:02:17.9]} 23. h3 {[%clk 0:02:15.4]}
23... g6 {[%clk 0:02:18]} 24. Rfd1 {[%clk 0:02:13.6]} 24... Nc4 {[%clk
0:02:14.9]} 25. Bd5 {[%clk 0:02:06.9]} 25... Nxb2 {[%clk 0:02:14]} 26. Rd2
{[%clk 0:02:04.5]} 26... Bxd5 {[%clk 0:02:12.5]} 27. Rxd5 {[%clk 0:02:02.9]}
27... b6 {[%clk 0:02:11.8]} 28. Rd4 {[%clk 0:01:58.3]} 28... b5 {[%clk
0:02:08.7]} 29. Rb1 {[%clk 0:01:56.1]} 1-0

[Event "Late-Titled-Tuesday-Blitz-October-24-2023"]
[Site "Chess.com"]
[Date "2023.10.24"]
[Round "3"]
[White "hblanco"]
[Black "dropstoneDP"]
[Result "1/2-1/2"]
[WhiteElo "2746"]
[BlackElo "3094"]
[TimeControl "180+1"]
[EndTime "14:25:51 PDT"]
[Termination "Game drawn by repetition"]

1. e4 {[%clk 0:03:00.9]} 1... e5 {[%clk 0:03:00]} 2. Nf3 {[%clk 0:03:01]} 2...
Nf6 {[%clk 0:03:00.6]} 3. Nc3 {[%clk 0:03:00.1]} 3... Nc6 {[%clk 0:02:59.8]} 4.
Bb5 {[%clk 0:02:59.9]} 4... Nd4 {[%clk 0:02:59.8]} 5. Ba4 {[%clk 0:02:53.3]}
5... c6 {[%clk 0:02:57.9]} 6. Nxd4 {[%clk 0:02:36.1]} 6... exd4 {[%clk
0:02:57.8]} 7. Ne2 {[%clk 0:02:37]} 7... Nxe4 {[%clk 0:02:57.8]} 8. Nxd4 {[%clk
0:02:37]} 8... Bc5 {[%clk 0:02:54.5]} 9. c3 {[%clk 0:02:34.2]} 9... O-O {[%clk
0:02:53.4]} 10. O-O {[%clk 0:02:33.9]} 10... d5 {[%clk 0:02:49.3]} 11. d3 {[%clk
0:02:27.7]} 11... Nf6 {[%clk 0:02:48.9]} 12. Bg5 {[%clk 0:02:24.8]} 12... Bxd4
{[%clk 0:02:46.4]} 13. cxd4 {[%clk 0:02:24.5]} 13... Qd6 {[%clk 0:02:45.1]} 14.
Qd2 {[%clk 0:02:24.1]} 14... Bf5 {[%clk 0:02:42.4]} 15. Bf4 {[%clk 0:02:21.7]}
15... Qd7 {[%clk 0:02:37.7]} 16. Rae1 {[%clk 0:02:17.5]} 16... Rfe8 {[%clk
0:02:37.3]} 17. Bd1 {[%clk 0:02:17.9]} 17... Rxe1 {[%clk 0:02:30.4]} 18. Rxe1
{[%clk 0:02:18.8]} 18... Re8 {[%clk 0:02:29.1]} 19. Be5 {[%clk 0:02:18.9]} 19...
Ng4 {[%clk 0:02:24.3]} 20. Bxg4 {[%clk 0:02:18.4]} 20... Bxg4 {[%clk 0:02:25.2]}
21. h3 {[%clk 0:02:13.8]} 21... Bf5 {[%clk 0:02:23.8]} 22. Re3 {[%clk
0:02:09.3]} 22... f6 {[%clk 0:02:23.3]} 23. Bg3 {[%clk 0:02:09.1]} 23... Rxe3
{[%clk 0:02:22.6]} 24. Qxe3 {[%clk 0:02:01.4]} 24... Kf7 {[%clk 0:02:22.2]} 25.
Bb8 {[%clk 0:01:58.6]} 25... a6 {[%clk 0:02:21.7]} 26. Kf1 {[%clk 0:01:56]}
26... g5 {[%clk 0:02:21.2]} 27. Ba7 {[%clk 0:01:54.5]} 27... h5 {[%clk
0:02:20.8]} 28. Bc5 {[%clk 0:01:54.8]} 28... h4 {[%clk 0:02:20.9]} 29. a3 {[%clk
0:01:54.3]} 29... Qe6 {[%clk 0:02:16.3]} 30. Qxe6+ {[%clk 0:01:53.3]} 30... Kxe6
{[%clk 0:02:17]} 31. Ke2 {[%clk 0:01:53.9]} 31... Bg6 {[%clk 0:02:17.2]} 32. Ke3
{[%clk 0:01:54.5]} 32... Bh7 {[%clk 0:02:15.8]} 33. a4 {[%clk 0:01:53.1]} 33...
Bg6 {[%clk 0:02:13.7]} 34. a5 {[%clk 0:01:53.6]} 34... Bh7 {[%clk 0:02:14.2]}
35. Bb6 {[%clk 0:01:53.7]} 35... Bg6 {[%clk 0:02:14.8]} 36. Bd8 {[%clk
0:01:53.1]} 36... Bh7 {[%clk 0:02:14.8]} 37. b4 {[%clk 0:01:53.1]} 37... Bg6
{[%clk 0:02:15.1]} 38. Ke2 {[%clk 0:01:53.5]} 38... Bh7 {[%clk 0:02:15.5]} 39.
Ke3 {[%clk 0:01:54.2]} 39... Bg6 {[%clk 0:02:15.9]} 40. Ke2 {[%clk 0:01:54.9]}
40... Bh7 {[%clk 0:02:16.5]} 41. Ke3 {[%clk 0:01:55.6]} 1/2-1/2

[Event "Late-Titled-Tuesday-Blitz-October-24-2023"]
[Site "Chess.com"]
[Date "2023.10.24"]
[Round "3"]
[White "Fradi82"]
[Black "HeroRubiksCube"]
[Result "1-0"]
[WhiteElo "2345"]
[BlackElo "2544"]
[TimeControl "180+1"]
[EndTime "14:26:10 PDT"]
[Termination "Fradi82 won by resignation"]

1. e4 {[%clk 0:03:00.9]} 1... e6 {[%clk 0:02:58.9]} 2. d4 {[%clk 0:03:00.7]}
2... d5 {[%clk 0:02:59.5]} 3. e5 {[%clk 0:03:00.3]} 3... c5 {[%clk 0:02:59.6]}
4. Qg4 {[%clk 0:03:00.3]} 4... Nc6 {[%clk 0:03:00.5]} 5. Nf3 {[%clk 0:02:58.7]}
5... cxd4 {[%clk 0:02:59.8]} 6. Bd3 {[%clk 0:02:58.3]} 6... Qc7 {[%clk
0:02:53.4]} 7. Qg3 {[%clk 0:02:49.3]} 7... Nb4 {[%clk 0:02:49.6]} 8. Nxd4 {[%clk
0:02:44.7]} 8... Nxd3+ {[%clk 0:02:45.6]} 9. Qxd3 {[%clk 0:02:45.6]} 9... Bd7
{[%clk 0:02:36.9]} 10. O-O {[%clk 0:02:40.1]} 10... Bc5 {[%clk 0:02:37.3]} 11.
Nc3 {[%clk 0:02:36]} 11... Bxd4 {[%clk 0:02:24.9]} 12. Qxd4 {[%clk 0:02:35.7]}
12... Ne7 {[%clk 0:02:25.6]} 13. Qg4 {[%clk 0:02:27.1]} 13... Nf5 {[%clk
0:02:20.5]} 14. Re1 {[%clk 0:02:19.3]} 14... O-O {[%clk 0:02:16.8]} 15. Bf4
{[%clk 0:02:09.3]} 15... Rac8 {[%clk 0:02:14.7]} 16. Rad1 {[%clk 0:02:07]} 16...
b5 {[%clk 0:02:09.7]} 17. a3 {[%clk 0:02:05.8]} 17... a5 {[%clk 0:02:09.3]} 18.
Nxd5 {[%clk 0:01:33.9]} 18... Qb7 {[%clk 0:01:38.7]} 19. Nf6+ {[%clk 0:01:30.5]}
1-0

[Event "Late-Titled-Tuesday-Blitz-October-24-2023"]
[Site "Chess.com"]
[Date "2023.10.24"]
[Round "3"]
[White "IMSlavin"]
[Black "jactorres"]
[Result "1-0"]
[WhiteElo "2235"]
[BlackElo "2515"]
[TimeControl "180+1"]
[EndTime "14:26:49 PDT"]
[Termination "IMSlavin won by resignation"]

1. e4 {[%clk 0:02:59.5]} 1... c6 {[%clk 0:02:58.3]} 2. d4 {[%clk 0:02:59.2]}
2... d5 {[%clk 0:02:58.9]} 3. e5 {[%clk 0:02:59.7]} 3... Bf5 {[%clk 0:02:58.7]}
4. Nf3 {[%clk 0:03:00.2]} 4... e6 {[%clk 0:02:58.7]} 5. Be2 {[%clk 0:03:00.7]}
5... Nd7 {[%clk 0:02:57.8]} 6. O-O {[%clk 0:03:00.4]} 6... Ne7 {[%clk
0:02:56.9]} 7. c3 {[%clk 0:03:00.5]} 7... c5 {[%clk 0:02:56.9]} 8. a3 {[%clk
0:03:00.5]} 8... Nc6 {[%clk 0:02:57]} 9. b4 {[%clk 0:03:00]} 9... cxd4 {[%clk
0:02:51.7]} 10. cxd4 {[%clk 0:03:00.1]} 10... Be7 {[%clk 0:02:49]} 11. Bb2
{[%clk 0:02:59.7]} 11... Rc8 {[%clk 0:02:45.8]} 12. Nbd2 {[%clk 0:03:00]} 12...
O-O {[%clk 0:02:44.2]} 13. Rc1 {[%clk 0:02:59.8]} 13... Qb6 {[%clk 0:02:34.8]}
14. Nb3 {[%clk 0:02:59.1]} 14... a5 {[%clk 0:02:23]} 15. Nc5 {[%clk 0:02:54.5]}
15... Rfd8 {[%clk 0:02:08.4]} 16. Nxd7 {[%clk 0:02:49.5]} 16... Rxd7 {[%clk
0:02:08.8]} 17. b5 {[%clk 0:02:50]} 17... Na7 {[%clk 0:02:08.8]} 18. a4 {[%clk
0:02:40.6]} 18... Rdc7 {[%clk 0:02:04.1]} 19. Qd2 {[%clk 0:02:35]} 19... Bb4
{[%clk 0:01:53.9]} 20. Qe3 {[%clk 0:02:34.7]} 20... Rc2 {[%clk 0:01:50.7]} 21.
Rxc2 {[%clk 0:02:11]} 21... Rxc2 {[%clk 0:01:49.7]} 22. Ba3 {[%clk 0:02:00.4]}
22... Rc3 {[%clk 0:01:45]} 23. Bxb4 {[%clk 0:02:00.3]} 23... Rxe3 {[%clk
0:01:44.7]} 24. Bc5 {[%clk 0:01:59.5]} 24... Qxc5 {[%clk 0:01:33.4]} 25. dxc5
{[%clk 0:01:56.8]} 25... Rxe2 {[%clk 0:01:33.8]} 26. Rc1 {[%clk 0:01:54.9]}
26... Rc2 {[%clk 0:01:33]} 27. Rxc2 {[%clk 0:01:54.2]} 27... Bxc2 {[%clk
0:01:33]} 28. Nd4 {[%clk 0:01:53.8]} 28... Bxa4 {[%clk 0:01:33]} 29. c6 {[%clk
0:01:50.3]} 29... bxc6 {[%clk 0:01:32.9]} 30. b6 {[%clk 0:01:50.5]} 1-0

[Event "Late-Titled-Tuesday-Blitz-October-24-2023"]
[Site "Chess.com"]
[Date "2023.10.24"]
[Round "3"]
[White "Championnn-9"]
[Black "BeanScreen"]
[Result "0-1"]
[WhiteElo "2500"]
[BlackElo "2715"]
[TimeControl "180+1"]
[EndTime "14:26:50 PDT"]
[Termination "BeanScreen won by checkmate"]

1. e4 {[%clk 0:03:00.9]} 1... e5 {[%clk 0:02:59.7]} 2. Nf3 {[%clk 0:02:56.3]}
2... Nc6 {[%clk 0:02:59.8]} 3. c3 {[%clk 0:02:53.8]} 3... Nf6 {[%clk 0:02:59.3]}
4. d4 {[%clk 0:02:51.2]} 4... Nxe4 {[%clk 0:02:59.3]} 5. dxe5 {[%clk 0:02:46.7]}
5... d5 {[%clk 0:02:57]} 6. exd6 {[%clk 0:02:42.4]} 6... Bxd6 {[%clk 0:02:54.4]}
7. Bd3 {[%clk 0:02:41.6]} 7... Nf6 {[%clk 0:02:47.4]} 8. Bg5 {[%clk 0:02:35.5]}
8... O-O {[%clk 0:02:46.4]} 9. O-O {[%clk 0:02:34.2]} 9... Bg4 {[%clk
0:02:46.1]} 10. h3 {[%clk 0:02:31.7]} 10... Bxf3 {[%clk 0:02:46]} 11. Qxf3
{[%clk 0:02:31.2]} 11... Ne5 {[%clk 0:02:46.2]} 12. Bxh7+ {[%clk 0:01:49.4]}
12... Nxh7 {[%clk 0:02:40.6]} 13. Qxb7 {[%clk 0:01:25.4]} 13... Nxg5 {[%clk
0:02:31.2]} 14. f4 {[%clk 0:01:25.5]} 14... Nef3+ {[%clk 0:02:22.6]} 15. gxf3
{[%clk 0:01:23.2]} 15... Nxh3+ {[%clk 0:02:07.3]} 16. Kg2 {[%clk 0:01:01.6]}
16... Nxf4+ {[%clk 0:02:06.7]} 17. Kg3 {[%clk 0:00:56.5]} 17... Qg5+ {[%clk
0:01:55.8]} 18. Kf2 {[%clk 0:00:56.3]} 18... Qg2+ {[%clk 0:01:39.5]} 19. Ke3
{[%clk 0:00:54.6]} 19... Qe2+ {[%clk 0:01:39.2]} 20. Kd4 {[%clk 0:00:54.4]}
20... Qd3# {[%clk 0:01:38.3]} 0-1